[Event "AUT Bundesliga 2022-23"]
[Site "Jenbach"]
[Date "2022.11.04"]
[Round "2.26"]
[White "Schwabeneder, Florian"]
[Black "Banusz, Tamas"]
[Result "0-1"]
[ECO "A07"]
[WhiteElo "2414"]
[BlackElo "2622"]
[Annotator "ChessBase"]
[PlyCount "108"]
[EventDate "2022.11.03"]
[EventType "team-tourn"]
[EventCountry "AUT"]
[SourceTitle "playchess.com"]
[Source "ChessBase"]
[SourceQuality "1"]
[TimeControl "40/5400+30:1800+30"]

1. Nf3 {[%emt 0:00:04]} d5 {[%emt 0:00:47]} 2. g3 {[%emt 0:00:10]} Bg4 {[%emt 0:03:02]} 3. Bg2 {[%emt 0:00:11]} c6 {[%emt 0:00:12]} 4. O-O {[%emt 0:00:20]} Nf6 {[%emt 0:00:12]} 5. d3 {[%emt 0:00:57]} Nbd7 {[%emt 0:01:22]} 6. Nbd2 {[%emt 0:00:48]} e5 {[%emt 0:00:32]} 7. e4 {[%emt 0:00:11]} dxe4 {[%emt 0:00:35]} 8. dxe4 {[%emt 0:00:10]} Bc5 {[%emt 0:00:43]} 9. h3 {[%emt 0:00:30]} Bh5 {[%emt 0:00:05]} 10. a4 {[%emt 0:00:31]} a5 {[%emt 0:01:02]} 11. Nb3 {[%emt 0:05:17]} Bb6 {[%emt 0:06:24]} 12. Qd3 {[%emt 0:01:29]} O-O {[%emt 0:01:55]} 13. Re1 {[%emt 0:02:14]} Re8 {[%emt 0:03:49]} 14. Qc3 {[%emt 0:00:32]} Bxf3 {[%emt 0:06:22]} 15. Qxf3 {[%emt 0:07:35]} Qe7 {[%emt 0:01:11]} 16. Bf1 {[%emt 0:09:58]} h6 {[%emt 0:09:14]} 17. Kg2 {[%emt 0:16:48]} Nf8 {[%emt 0:03:22]} 18. Nd2 {[%emt 0:06:00]} Ne6 {[%emt 0:03:35]} 19. Nc4 {[%emt 0:00:55]} Bc5 {[%emt 0:04:06]} 20. c3 {[%emt 0:08:22]} Ng5 {[%emt 0:02:20]} 21. Bxg5 {[%emt 0:02:42]} hxg5 {[%emt 0:00:03]} 22. Bd3 {[%emt 0:04:35]} g6 {[%emt 0:03:45]} 23. Rad1 {[%emt 0:09:21]} Kg7 {[%emt 0:00:52]} 24. Ne3 {[%emt 0:02:57]} Rh8 {[%emt 0:03:42]} 25. Ng4 {[%emt 0:01:18]} Ne8 {[%emt 0:01:52]} 26. Ne3 {[%emt 0:05:44]} Nd6 {[%emt 0:08:40]} 27. Nc4 {[%emt 0:02:30]} Rhd8 {[%emt 0:03:15]} 28. Nxd6 {[%emt 0:00:42]} Rxd6 {[%emt 0:00:10]} 29. Qe2 {[%emt 0:00:50]} Rad8 {[%emt 0:03:14]} 30. Bc2 {[%emt 0:02:19]} Qc7 {[%emt 0:03:04]} 31. Rxd6 {[%emt 0:01:30]} Rxd6 {[%emt 0:00:15]} 32. Rd1 {[%emt 0:01:03]} Rf6 {[%emt 0:00:45]} 33. f3 {[%emt 0:04:06]} Ba7 {[%emt 0:02:59]} 34. Bd3 {[%emt 0:04:17]} Qb6 {[%emt 0:00:59]} 35. Kh1 {[%emt 0:00:33]} Rd6 {[%emt 0:01:53]} 36. Kg2 {[%emt 0:00:19]} Kf6 {[%emt 0:04:16]} 37. Kh1 {[%emt 0:00:16]} Ke7 {[%emt 0:00:26]} 38. Kg2 {[%emt 0:00:05]} Qc5 {[%emt 0:02:07]} 39. Kh1 {[%emt 0:00:17]} Kf6 {[%emt 0:01:04]} 40. Kg2 {[%emt 0:00:00]} Kg7 {[%emt 0:00:00]} 41. Kh1 {[%emt 0:01:04]} b5 {[%emt 0:04:21]} 42. axb5 {[%emt 0:02:25]} cxb5 {[%emt 0:00:52]} 43. Qc2 {[%emt 0:14:26]} a4 {[%emt 0:06:02]} 44. g4 {[%emt 0:02:09]} b4 {[%emt 0:02:11]} 45. cxb4 {[%emt 0:01:13]} Qxb4 {[%emt 0:00:09]} 46. Qd2 {[%emt 0:04:24]} Qd4 {[%emt 0:05:01]} 47. Qe2 {[%emt 0:00:45]} Rb6 {[%emt 0:04:52]} 48. Bc4 {[%emt 0:02:01]} Qc5 {[%emt 0:00:04]} 49. Rd5 {[%emt 0:02:28]} Qc7 {[%emt 0:01:18]} 50. Rd1 {[%emt 0:03:18]} Rb4 {[%emt 0:00:50]} 51. Bd3 {[%emt 0:02:36]} Qb6 {[%emt 0:01:24]} 52. Qd2 {[%emt 0:00:40]} Rxb2 {[%emt 0:00:33]} 53. Qxg5 {[%emt 0:00:09]} Qf2 {[%emt 0:00:33]} 54. Qxe5+ {[%emt 0:00:31]} Kh7 {[%emt 0:00:05]} 0-1

[Event "AUT Bundesliga 2022-23"]
[Site "Jenbach"]
[Date "2022.11.04"]
[Round "2.27"]
[White "Blohberger, Felix"]
[Black "Kilgus, Georg"]
[Result "1-0"]
[ECO "A05"]
[WhiteElo "2493"]
[BlackElo "2397"]
[Annotator "ChessBase"]
[PlyCount "83"]
[EventDate "2022.11.03"]
[EventType "team-tourn"]
[EventCountry "AUT"]
[SourceTitle "playchess.com"]
[Source "ChessBase"]
[SourceQuality "1"]
[TimeControl "40/5400+30:1800+30"]

1. Nf3 {[%emt 0:00:04]} Nf6 {[%emt 0:02:53]} 2. c4 {[%emt 0:00:10]} e6 {[%emt 0:01:36]} 3. b3 {[%emt 0:00:16]} d5 {[%emt 0:02:39]} 4. Bb2 {[%emt 0:00:08]} Bd6 {[%emt 0:00:51]} 5. g3 {[%emt 0:00:17]} c5 {[%emt 0:13:02]} 6. cxd5 {[%emt 0:00:15]} exd5 {[%emt 0:00:02]} 7. Bg2 {[%emt 0:00:11]} d4 {[%emt 0:01:36]} 8. O-O {[%emt 0:00:07]} Nc6 {[%emt 0:00:01]} 9. Na3 {[%emt 0:00:50]} O-O {[%emt 0:01:05]} 10. e3 {[%emt 0:00:12]} Bf5 {[%emt 0:05:34]} 11. exd4 {[%emt 0:04:46]} cxd4 {[%emt 0:00:06]} 12. Nc4 {[%emt 0:00:23]} Bc7 {[%emt 0:08:10]} 13. Re1 {[%emt 0:00:18]} h6 {[%emt 0:07:38]} 14. Nfe5 {[%emt 0:04:38]} Nxe5 {[%emt 0:02:58]} 15. Nxe5 {[%emt 0:00:38]} Re8 {[%emt 0:00:02]} 16. Qf3 {[%emt 0:03:01]} Bc8 {[%emt 0:02:20]} 17. Nc4 {[%emt 0:00:27]} Rxe1+ {[%emt 0:13:55]} 18. Rxe1 {[%emt 0:00:30]} Rb8 {[%emt 0:00:01]} 19. Qd3 {[%emt 0:03:01]} b5 {[%emt 0:00:24]} 20. Ne5 {[%emt 0:00:08]} Bxe5 {[%emt 0:00:02]} 21. Rxe5 a6 22. Qxd4 {[%emt 0:00:41]} Qxd4 {[%emt 0:00:03]} 23. Bxd4 {[%emt 0:00:11]} Bb7 {[%emt 0:00:01]} 24. Re7 {[%emt 0:04:06]} Bxg2 {[%emt 0:00:05]} 25. Kxg2 {[%emt 0:00:14]} Nd5 {[%emt 0:00:52]} 26. Rd7 {[%emt 0:02:31]} Nb4 {[%emt 0:01:14]} 27. a3 {[%emt 0:00:31]} Nc6 {[%emt 0:00:28]} 28. Be3 {[%emt 0:05:37]} Na5 {[%emt 0:00:18]} 29. Rd3 {[%emt 0:02:17]} f6 {[%emt 0:00:21]} 30. g4 {[%emt 0:00:14]} Kf7 {[%emt 0:00:06]} 31. h4 {[%emt 0:01:42]} Rb7 {[%emt 0:05:58]} 32. h5 {[%emt 0:03:23]} Ke6 {[%emt 0:03:55]} 33. f4 {[%emt 0:11:05]} f5 {[%emt 0:04:55]} 34. gxf5+ {[%emt 0:04:05]} Kxf5 {[%emt 0:00:15]} 35. Kf3 {[%emt 0:00:04]} Re7 {[%emt 0:13:45]} 36. Bc5 {[%emt 0:03:18]} Rf7 {[%emt 0:02:05]} 37. Bb4 {[%emt 0:01:16]} Nb7 {[%emt 0:00:01]} 38. Rd5+ {[%emt 0:01:18]} Ke6 {[%emt 0:00:33]} 39. Re5+ {[%emt 0:00:24]} Kd7 {[%emt 0:00:14]} 40. Ke4 {[%emt 0:00:00]} Nd6+ {[%emt 0:00:00]} 41. Bxd6 {[%emt 0:03:36]} Kxd6 {[%emt 0:01:55]} 42. f5 {[%emt 0:00:12]} 1-0

[Event "AUT Bundesliga 2022-23"]
[Site "Jenbach"]
[Date "2022.11.04"]
[Round "2.28"]
[White "Singer, Christoph"]
[Black "Peyrer, Konstantin"]
[Result "1/2-1/2"]
[ECO "A80"]
[WhiteElo "2309"]
[BlackElo "2402"]
[Annotator "TA"]
[PlyCount "107"]
[EventDate "2022.11.03"]
[EventType "team-tourn"]
[EventCountry "AUT"]
[SourceTitle "playchess.com"]
[Source "ChessBase"]
[SourceQuality "1"]
[TimeControl "40/5400+30:1800+30"]

{[%evp 9,107,12,15,20,43,24,22,12,27,0,23,20,18,13,6,-16,0,0,36,48,55,45,94,99,112,95,135,94,137,76,83,104,89,102,91,0,0,0,0,0,7,0,0,0,50,50,85,97,95,72,83,90,66,68,102,60,87,35,44,44,55,29,55,45,56,42,50,39,41,13,13,10,14,14,20,8,22,17,36,0,0,0,0,0,0,0,56,70,72,24,13,10,12,0,58,15,20,0,0,0]} 1. d4 {[%emt 0:00:17]} f5 {[%emt 0:00:20]} 2. Nf3 {[%emt 0:00:29]} Nf6 {[%emt 0:00:09]} 3. Bf4 {[%emt 0:01:32]} g6 {[%emt 0:00:56]} 4. e3 {[%emt 0:01:10]} Bg7 {[%emt 0:00:18]} 5. Bc4 {[%emt 0:01:28]} e6 {[%emt 0:01:51]} 6. Nbd2 {[%emt 0:00:41] A80: Dutch Defence: Unusual White second moves.} d6 {[%emt 0:01:54]} 7. h3 {[%emt 0:06:11]} Nc6 {[%emt 0:02:21]} 8. c3 {[%emt 0:26:44]} Qe7 {[%emt 0:01:46]} 9. Bh2 {[%emt 0:01:54]} O-O {[%emt 0:06:15]} 10. O-O {[%emt 0:09:17]} Kh8 {[%emt 0:01:34]} 11. Re1 {[%emt 0:07:23]} e5 {[%emt 0:06:28] Threatens to win with ...e4.} 12. dxe5 {[%emt 0:01:47]} dxe5 {[%emt 0:00:15] [#]} 13. Bb5 $146 {[%emt 0:01:43]} ({Predecessor:} 13. Qc2 e4 14. Nd4 Ne5 15. Bxe5 Qxe5 16. Rad1 c5 17. Ne2 Bd7 18. Ng3 b5 19. Bf1 {½-½ (78) Bu,K (2023)-Liu,L (2189) Quebec 2018}) 13... e4 {[%emt 0:02:18]} 14. Bxc6 {[%emt 0:01:46]} bxc6 {[%emt 0:00:39]} 15. Ne5 {[%emt 0:05:01]} Qe6 {[%emt 0:05:31]} (15... c5 $14 {deserves consideration.}) 16. Qa4 $16 {[%emt 0:06:37]} Rb8 {[%emt 0:01:00]} 17. Ndc4 {[%emt 0:01:58] White is more active. Pair of Knights!} Rb5 {[%emt 0:07:02]} 18. Qxa7 {[%emt 0:04:30]} Ne8 {[%emt 0:04:13]} 19. a4 {[%emt 0:05:22]} (19. Rad1 $142) 19... Rxe5 {[%emt 0:04:16]} 20. Nxe5 {[%emt 0:00:04]} Bxe5 {[%emt 0:00:06]} 21. Bxe5+ {[%emt 0:00:08]} Qxe5 {[%emt 0:00:04]} 22. Qd4 {[%emt 0:02:36]} (22. Qa8 $16 Nf6 23. a5) 22... Qxd4 $11 {[%emt 0:00:20]} 23. cxd4 {[%emt 0:00:01]} Be6 {[%emt 0:00:07]} 24. Rec1 {[%emt 0:00:42]} Bd5 {[%emt 0:00:57]} 25. b4 {[%emt 0:00:21]} Nd6 {[%emt 0:01:58]} 26. b5 {[%emt 0:03:11]} cxb5 {[%emt 0:00:18]} (26... Bc4 $11) 27. Rxc7 $14 {[%emt 0:00:02] aiming for axb5.} Ra8 {[%emt 0:00:11]} 28. Rd7 {[%emt 0:04:24][%mdl 1024] White has strong compensation.} Ra6 {[%emt 0:00:53] [#]} 29. Rb1 $1 {[%emt 0:00:01]} Be6 {[%emt 0:11:59]} (29... bxa4 $2 30. Rb8+ Bg8 31. Rdd8 $18) 30. axb5 {[%emt 0:01:38]} Rb6 {[%emt 0:00:04]} 31. Rc7 {[%emt 0:01:09]} Bd5 {[%emt 0:01:33]} 32. Rc5 {[%emt 0:00:45]} Bb7 {[%emt 0:00:05]} 33. Rb4 {[%emt 0:01:46]} (33. Rbc1 $16) 33... Kg7 {[%emt 0:00:40]} 34. Rc7+ {[%emt 0:00:47]} Nf7 {[%emt 0:00:46]} 35. Kh2 {[%emt 0:00:52]} Kf6 {[%emt 0:00:22]} 36. Kg3 {[%emt 0:00:27]} h6 {[%emt 0:00:33]} 37. h4 {[%emt 0:00:08]} Nd6 {[%emt 0:00:26]} 38. Rc5 {[%emt 0:01:02]} g5 {[%emt 0:04:42]} 39. hxg5+ {[%emt 0:00:15]} hxg5 {[%emt 0:00:06]} 40. Rb1 {[%emt 0:00:00]} Nf7 {[%emt 0:00:00]} 41. Rh1 {[%emt 0:04:29]} Kg6 {[%emt 0:02:43]} 42. Ra1 {[%emt 0:07:15]} Nd6 {[%emt 0:02:20]} 43. Rb1 {[%emt 0:00:39]} f4+ {[%emt 0:01:25]} 44. exf4 {[%emt 0:05:21]} Nf5+ {[%emt 0:00:10]} 45. Kg4 {[%emt 0:05:46]} Nh6+ {[%emt 0:00:39]} 46. Kg3 {[%emt 0:00:17]} Nf5+ $1 {[%emt 0:00:06]} 47. Kg4 {[%emt 0:00:04]} gxf4 {[%emt 0:00:31]} 48. Kxf4 {[%emt 0:02:23]} Nxd4 {[%emt 0:00:21] [#] Strongly threatening ...Ne6+.} 49. Ke3 {[%emt 0:01:20]} ({White should play} 49. Ke5 $16 Ne6 50. Rc2) 49... Nf5+ $11 {[%emt 0:00:43]} 50. Ke2 {[%emt 0:03:00]} Nd4+ {[%emt 0:03:41]} 51. Ke3 {[%emt 0:00:07]} Ne6 {[%emt 0:00:05]} (51... Nf5+ $11 52. Kf4 Ng7) 52. Re5 {[%emt 0:01:19]} Rd6 {[%emt 0:00:26] Against Rd1} 53. Rxe4 {[%emt 0:01:36]} Bxe4 {[%emt 0:00:09]} 54. Kxe4 {[%emt 0:00:09] Weighted Error Value: White=0.15 (very precise) /Black=0.14 (very precise)} 1/2-1/2

[Event "AUT Bundesliga 2022-23"]
[Site "Jenbach"]
[Date "2022.11.04"]
[Round "2.29"]
[White "Steindl, Johannes"]
[Black "Salvenmoser, Stefan"]
[Result "0-1"]
[ECO "B99"]
[WhiteElo "2315"]
[BlackElo "2295"]
[Annotator "TA"]
[PlyCount "104"]
[EventDate "2022.11.03"]
[EventType "team-tourn"]
[EventCountry "AUT"]
[SourceTitle "playchess.com"]
[Source "ChessBase"]
[SourceQuality "1"]
[TimeControl "40/5400+30:1800+30"]

{[%evp 22,104,68,58,60,44,37,41,53,38,34,27,48,8,15,3,3,0,0,-23,-14,-14,-14,-14,-14,-14,-14,-14,-14,-54,-57,-50,-49,-53,-57,-56,-12,-12,-4,-15,-4,-11,0,-8,-8,-6,-5,-32,-8,-33,-25,-35,-8,-12,-2,-58,-58,-1188,-1202,-1202,-1202,-1202,-1199,-1188,-1177,-1170,-1170,-1170,-1160,-1147,-444,-1168,-1156,-1125,-1022,-2029,-1906,-1666,-1657,-1618,-1618,-1513,-1289,-1402,-1300]} 1. e4 {[%emt 0:00:02]} c5 {[%emt 0:00:08]} 2. Nf3 {[%emt 0:00:05]} d6 {[%emt 0:00:10]} 3. d4 {[%emt 0:00:06]} cxd4 {[%emt 0:00:06]} 4. Nxd4 {[%emt 0:00:03]} Nf6 {[%emt 0:00:09]} 5. Nc3 {[%emt 0:00:03]} a6 {[%emt 0:00:08]} 6. Bg5 {[%emt 0:00:18]} e6 {[%emt 0:00:11]} 7. f4 {[%emt 0:00:05]} Be7 {[%emt 0:00:07]} 8. Qf3 {[%emt 0:00:08]} Qc7 {[%emt 0:00:09]} 9. O-O-O {[%emt 0:00:07]} Nbd7 {[%emt 0:00:10]} 10. g4 {[%emt 0:00:09][%cal Bg2g4,Bg4g5][%mdl 32]} h6 {[%emt 0:00:15]} 11. Bxf6 {[%emt 0:00:15]} Bxf6 {[%emt 0:00:09]} 12. h4 {[%emt 0:00:06]} Nb6 $1 {[%emt 0:00:05][%mdl 4] outshines the older 12...Qb6. B99: Sicilian Najdorf: 6 Bg5 e6 7 f4 Be7 8 Qf3 Qc7 9 0-0-0 Nbd7.} 13. g5 {[%emt 0:00:28]} Bxd4 {[%emt 0:01:02]} 14. Rxd4 {[%emt 0:00:05]} Qc5 {[%emt 0:00:06] White is slightly better.} 15. Rd1 {[%emt 0:10:18]} Bd7 {[%emt 0:01:18] [#]} 16. Be2 $146 {[%emt 0:04:46]} ({Predecessor:} 16. Bd3 O-O-O 17. Rhg1 Bc6 18. gxh6 gxh6 19. Rg7 Rd7 20. f5 Qe5 21. Rdg1 Qf6 22. Qe3 {½-½ (37) Vykouk,J (2445)-Michalik,P (2592) Skalica 2021}) 16... O-O-O {[%emt 0:01:39]} 17. Rhg1 {[%emt 0:01:56]} g6 {[%emt 0:06:23]} 18. a3 {[%emt 0:18:42]} Na4 {[%emt 0:08:56]} 19. Rg3 {[%emt 0:09:56]} Kb8 {[%emt 0:10:09]} 20. Qe3 {[%emt 0:31:11]} Qxe3+ {[%emt 0:09:05]} (20... hxg5 {with more complications.} 21. Qxc5 Nxc5 22. Rxg5 Bc6) 21. Rxe3 {[%emt 0:00:03]} hxg5 {[%emt 0:00:16]} 22. hxg5 {[%emt 0:00:23]} Nxc3 {[%emt 0:03:12]} 23. Rxc3 {[%emt 0:02:24]} Rh2 {[%emt 0:02:00]} 24. Bc4 {[%emt 0:06:29]} Bc6 {[%emt 0:05:44]} 25. f5 {[%emt 0:01:33]} (25. Bxa6 $5 Bxe4 26. Rd4 $15) 25... Bxe4 {[%emt 0:02:14]} 26. fxe6 {[%emt 0:00:04]} fxe6 {[%emt 0:00:09]} 27. Bxe6 {[%emt 0:00:04]} d5 {[%emt 0:06:08]} 28. Rd2 {[%emt 0:01:28]} Rh1+ {[%emt 0:03:49]} 29. Rd1 {[%emt 0:00:03]} Rxd1+ {[%emt 0:01:08]} 30. Kxd1 $11 {[%emt 0:00:03][%mdl 4096] Endgame KRB-KRB} Rh8 {[%emt 0:00:06]} 31. Kd2 {[%emt 0:05:20]} Rh5 {[%emt 0:04:54]} 32. Rc8+ {[%emt 0:00:22]} Ka7 {[%emt 0:00:06]} 33. Ke3 {[%emt 0:00:04]} Rxg5 {[%emt 0:00:21]} 34. Kf4 {[%emt 0:06:02] Inhibits Re5.} (34. Kd4 $5 {[%cal Rc2c4]}) 34... Rh5 {[%emt 0:03:29]} 35. c4 {[%emt 0:01:25]} Bh1 {[%emt 0:00:56]} 36. c5 {[%emt 0:02:32]} d4 {[%emt 0:02:08][%cal Bd5d4,Bd4d3,Bd3d2][%mdl 32]} 37. b4 $1 {[%emt 0:00:20]} Bd5 {[%emt 0:00:50]} 38. Bxd5 {[%emt 0:01:04]} (38. Bd7 $11) 38... Rxd5 {[%emt 0:00:05] KR-KR} 39. Rh8 $2 {[%emt 0:00:48][%mdl 8192] Now White is beyond hope.} ({Not} 39. Ke4 $2 {[#]} d3 $1 40. Kxd5 d2 $19) (39. c6 $15) 39... d3 $19 {[%emt 0:00:30] Black is clearly winning.} 40. Rh1 {[%emt 0:00:00]} d2 {[%emt 0:00:00]} 41. Rd1 {[%emt 0:02:10]} Kb8 {[%emt 0:04:04] [#] Threatens to win with ...Kc7.} 42. Ke4 {[%emt 0:05:55]} Rd8 {[%emt 0:00:12] ...Kc7 is the strong threat.} 43. a4 {[%emt 0:00:16]} Kc7 {[%emt 0:03:41] aiming for ...Kc6.} 44. b5 {[%emt 0:00:18]} axb5 {[%emt 0:01:17]} 45. axb5 {[%emt 0:00:04]} g5 {[%emt 0:00:16][%cal Bg6g5,Bg5g4,Bg4g3][%mdl 32]} 46. Ke5 {[%emt 0:04:07]} (46. Ke3 $142 Rd5 47. Rxd2 Rxc5 48. Rh2) 46... b6 {[%emt 0:07:30]} 47. c6 {[%emt 0:03:03]} Rd3 {[%emt 0:01:58]} 48. Kf6 {[%emt 0:09:42]} g4 {[%emt 0:08:02]} 49. Kf5 {[%emt 0:00:50]} Rd4 {[%emt 0:00:08] ( -> ...g3)} 50. Ke5 {[%emt 0:03:54]} Rb4 {[%emt 0:00:24]} 51. Rxd2 {[%emt 0:00:03]} Rxb5+ 52. Ke6 {[%emt 0:00:16]} g3 {[%emt 0:03:26] Weighted Error Value: White=0.54/Black=0.04 (flawless)} 0-1

[Event "AUT Bundesliga 2022-23"]
[Site "Jenbach"]
[Date "2022.11.04"]
[Round "2.30"]
[White "Lentrodt, Thomas"]
[Black "Huber, Benedikt"]
[Result "1/2-1/2"]
[ECO "D37"]
[WhiteElo "2252"]
[BlackElo "2299"]
[Annotator "TA"]
[PlyCount "67"]
[EventDate "2022.11.03"]
[EventType "team-tourn"]
[EventCountry "AUT"]
[SourceTitle "playchess.com"]
[Source "ChessBase"]
[SourceQuality "1"]
[TimeControl "40/5400+30:1800+30"]

{[%evp 24,67,0,-1,-4,-8,-8,-4,-14,-16,0,-16,-14,-12,-12,-19,3,-16,-22,-20,0,-29,-5,-9,0,0,0,-13,-6,-6,-7,-7,-7,-10,-7,-15,-16,-16,0,-12,-5,-18,-16,-14,-14,-27]} 1. d4 {[%emt 0:00:03]} d5 {[%emt 0:00:08]} 2. Nf3 {[%emt 0:00:05]} Nf6 {[%emt 0:00:08]} 3. c4 {[%emt 0:00:05]} e6 {[%emt 0:00:15]} 4. Nc3 {[%emt 0:00:07]} dxc4 {[%emt 0:00:07]} 5. e3 {[%emt 0:04:15]} a6 {[%emt 0:00:50]} 6. Bxc4 {[%emt 0:00:19]} b5 {[%emt 0:00:36]} 7. Be2 {[%emt 0:00:07]} c5 {[%emt 0:00:13]} 8. O-O {[%emt 0:00:29]} Bb7 {[%emt 0:05:14]} 9. dxc5 {[%emt 0:08:47]} Bxc5 {[%emt 0:03:15]} 10. Qxd8+ {[%emt 0:02:34]} Kxd8 {[%emt 0:00:08]} 11. a3 {[%emt 0:05:10]} Ke7 {[%emt 0:08:43]} 12. b4 {[%emt 0:01:03]} Bd6 {[%emt 0:00:21]} 13. Bb2 {[%emt 0:05:04]} Rc8 {[%emt 0:07:11] D27: Queen's Gambit Accepted: Classical main line: 7 e4!? and 7 a4.} 14. Rac1 {[%emt 0:13:01]} Nbd7 {[%emt 0:01:43]} 15. Nd4 {[%emt 0:09:16]} Nb6 {[%emt 0:04:51]} 16. Nb3 {[%emt 0:01:02]} Rab8 {[%emt 0:30:41]} 17. Na5 {[%emt 0:03:10]} Ba8 {[%emt 0:01:01] [#]} 18. Nb1 $146 {[%emt 0:04:58]} ({Predecessor:} 18. Rfd1 Rc7 19. Bf1 Rbc8 20. Ne2 Na4 21. Ba1 e5 22. Rxc7+ Rxc7 23. Rc1 Ne4 24. f3 {½-½ (67) Sazci,B (1769)-Badelka,O (2440) Chess.com INT 2021}) 18... Nfd7 {[%emt 0:16:01]} 19. Nd2 {[%emt 0:06:32]} Be5 {[%emt 0:00:59]} 20. Bd4 {[%emt 0:07:54]} Bxd4 {[%emt 0:06:09]} 21. exd4 {[%emt 0:00:05]} Bd5 {[%emt 0:02:18]} 22. Ndb3 {[%emt 0:04:55]} Bxb3 {[%emt 0:05:36]} 23. Nxb3 {[%emt 0:00:13] The position is equal.} Nf6 {[%emt 0:00:08][%cal Bd7f6,Bf6d5,Bd5b4][%mdl 32]} 24. Nc5 {[%emt 0:09:05]} Ra8 {[%emt 0:00:05]} 25. Rfd1 {[%emt 0:01:15]} Nfd5 {[%emt 0:00:16]} 26. g3 {[%emt 0:00:37]} a5 {[%emt 0:01:45]} 27. Bxb5 {[%emt 0:01:21]} axb4 {[%emt 0:00:05]} 28. axb4 {[%emt 0:01:21]} Nxb4 {[%emt 0:00:05] Pair of Knights!} 29. Rb1 {[%emt 0:01:17]} N4d5 {[%emt 0:00:19] [#] White must now prevent ...Nc3.} 30. Rb3 {[%emt 0:01:15] Prevents Nc3.} Ra2 {[%emt 0:01:59]} 31. Rdb1 {[%emt 0:02:31]} Rc7 {[%emt 0:02:30]} 32. Bd3 {[%emt 0:04:13]} Nd7 {[%emt 0:00:55]} 33. Rb7 {[%emt 0:01:40]} Ra7 {[%emt 0:00:28]} 34. Rxa7 {[%emt 0:01:22] An even fight not without its subleties.  Weighted Error Value: White=0.07 (flawless) /Black=0.05 (flawless)} ({Reject} 34. Bxh7 g6 35. Rxa7 Rxa7 $17) 1/2-1/2

[Event "AUT Bundesliga 2022-23"]
[Site "Jenbach"]
[Date "2022.11.04"]
[Round "2.31"]
[White "Prusikin, Michael"]
[Black "Baumegger, Siegfried"]
[Result "0-1"]
[ECO "E42"]
[WhiteElo "2517"]
[BlackElo "2441"]
[Annotator "ChessBase"]
[PlyCount "38"]
[EventDate "2022.11.03"]
[EventType "team-tourn"]
[EventCountry "AUT"]
[SourceTitle "playchess.com"]
[Source "ChessBase"]
[SourceQuality "1"]
[TimeControl "40/5400+30:1800+30"]

1. d4 {[%emt 0:00:30]} Nf6 {[%emt 0:00:30]} 2. c4 {[%emt 0:00:30]} e6 {[%emt 0:00:00]} 3. Nc3 {[%emt 0:00:00]} Bb4 {[%emt 0:00:01]} 4. e3 {[%emt 0:00:00]} c5 {[%emt 0:06:40]} 5. Nge2 {[%emt 0:01:19]} d5 {[%emt 0:07:06]} 6. a3 {[%emt 0:00:39]} Bxc3+ {[%emt 0:00:06]} 7. Nxc3 {[%emt 0:00:04]} cxd4 {[%emt 0:00:09]} 8. exd4 {[%emt 0:00:08]} dxc4 {[%emt 0:00:08]} 9. Bxc4 {[%emt 0:00:13]} O-O {[%emt 0:00:16]} 10. O-O {[%emt 0:03:26]} Nc6 {[%emt 0:00:11]} 11. Be3 {[%emt 0:01:31]} h6 {[%emt 0:00:47]} 12. Ba2 {[%emt 0:06:00]} Ne7 {[%emt 0:02:11]} 13. Qf3 {[%emt 0:07:47]} Ned5 {[%emt 0:01:25]} 14. Qg3 {[%emt 0:09:43]} Nxc3 {[%emt 0:16:27]} 15. bxc3 {[%emt 0:01:01]} Ne4 {[%emt 0:01:00]} 16. Qf3 {[%emt 0:14:56]} Nxc3 {[%emt 0:00:46]} 17. Bxh6 {[%emt 0:03:29]} Nxa2 {[%emt 0:05:23]} 18. Qg3 {[%emt 0:00:36]} Qf6 {[%emt 0:06:55]} 19. Bg5 {[%emt 0:00:42]} Nc3 {[%emt 0:05:33]} 0-1

[Event "AUT Bundesliga 2022-23"]
[Site "Jenbach"]
[Date "2022.11.04"]
[Round "2.32"]
[White "Sadilek, Maximilian"]
[Black "Berchtenbreiter, Maximilian"]
[Result "0-1"]
[ECO "B06"]
[WhiteElo "2260"]
[BlackElo "2509"]
[Annotator "ChessBase"]
[PlyCount "44"]
[EventDate "2022.11.03"]
[EventType "team-tourn"]
[EventCountry "AUT"]
[SourceTitle "playchess.com"]
[Source "ChessBase"]
[SourceQuality "1"]
[TimeControl "40/5400+30:1800+30"]

1. e4 {[%emt 0:00:06]} g6 {[%emt 0:00:05]} 2. d4 {[%emt 0:00:20]} c6 {[%emt 0:00:20]} 3. Nc3 {[%emt 0:01:07]} d5 {[%emt 0:00:05]} 4. Be3 {[%emt 0:00:15]} dxe4 {[%emt 0:00:54]} 5. Nxe4 {[%emt 0:00:08]} Nf6 {[%emt 0:00:04]} 6. Nxf6+ {[%emt 0:00:15]} exf6 {[%emt 0:00:04]} 7. Nf3 {[%emt 0:03:27]} Bg7 {[%emt 0:00:06]} 8. Qd2 {[%emt 0:00:28]} O-O {[%emt 0:00:15]} 9. Be2 {[%emt 0:09:07]} Re8 {[%emt 0:04:33]} 10. O-O {[%emt 0:02:52]} Nd7 {[%emt 0:05:50]} 11. Rfe1 {[%emt 0:00:34]} Nb6 {[%emt 0:03:59]} 12. Bh6 {[%emt 0:07:15]} Bxh6 {[%emt 0:11:16]} 13. Qxh6 {[%emt 0:00:06]} Be6 {[%emt 0:00:04]} 14. b3 {[%emt 0:25:53]} a5 {[%emt 0:00:07]} 15. c4 {[%emt 0:10:49]} a4 {[%emt 0:00:13]} 16. Rad1 {[%emt 0:06:05]} Bf5 {[%emt 0:02:12]} 17. Nh4 {[%emt 0:02:58]} Bc2 {[%emt 0:04:53]} 18. Rc1 {[%emt 0:05:39]} axb3 {[%emt 0:00:08]} 19. axb3 {[%emt 0:00:04]} Bxb3 {[%emt 0:00:09]} 20. Bd3 {[%emt 0:06:21]} Rxe1+ {[%emt 0:00:23]} 21. Rxe1 {[%emt 0:00:02]} Bxc4 {[%emt 0:07:10]} 22. Bc2 {[%emt 0:10:51]} Qf8 {[%emt 0:01:42]} 0-1